Cogmind - Beta 15 @@@ ROGUE MODE // 2025.09.06 @ 11:08:38 Player: shapeshifter Result: Destroyed by Y-72 Warden with Railgun Performance ------------- Evolutions (8) 4000 Regions Visited (13) 2600 Robots Destroyed (26) 130 Value Destroyed (1155) 1155 Prototype IDs (11) 220 Alien Tech Used (5) 1000 Bonus (987) 987 TOTAL SCORE: 10092 Bonus ------- Follower Combat Kills 187 Registered with UFD 300 Met Optimus in HQ 500 Cogmind --------- Core Integrity 0/1450 Matter 106/300 Energy 100/100 System Corruption 44% Temperature Cool (9) Movement Core (50) Location -2/Protoforge Parts ------- > --- POWER (3) -------- (None) > --- PROPULSION (8) --- (None) > --- UTILITY (9) ------ (None) > --- WEAPON (3) ------- (None) > --- INVENTORY (5) ---- Medium Storage Unit ECM Suite Improved Reaction Control System Hacking Suite Improved System Shield Peak State ------------ > --- POWER ------------ Particle Reactor Micro Antimatter Reactor Compact Particle Reactor > --- PROPULSION ------- Cooled Aerolev Unit Cooled Aerolev Unit Improved Antigrav System Improved Linear Gravjet Improved Linear Gravjet Improved Linear Gravjet Improved Linear Gravjet > --- UTILITY ---------- Advanced Coolant Injector Large Storage Unit Structural Scanner Advanced Sensor Array Advanced Signal Interpreter Transmission Jammer Jamming Amplifier ECM Suite Improved Reaction Control System > --- WEAPON ----------- Core Cannon Makeshift Axe > --- INVENTORY -------- Medium Storage Unit Advanced Weight Redist. System Phase Armor Phase Redirector Improved Hacking Suite Improved System Shield Subatomic Replicator Terrabomb Terrabomb Greatsword [Rating: 148] Favorites ----------- Power Light Nuclear Core Engine Ion Engine Power Core Light Nuclear Core Reactor Compact Particle Reactor Propulsion Cooled Aerolev Unit Treads Light Treads Leg Improved Thunder Leg Wheel Subdweller Monowheel Hover Unit Cooled Aerolev Unit Flight Unit Impulse Thruster Utility Large Storage Unit Device Seismic Detector Storage Large Storage Unit Processor Improved Signal Interpreter Hackware Improved System Shield Protection Improved Light Armor Plating Artifact Phase Armor Weapon Makeshift Axe Energy Gun Riot Gun Energy Cannon Core Cannon Ballistic Gun Barrage Gun Ballistic Cannon Battle Cannon Launcher Subdweller Shrapnel Launcher Slashing Weapon Makeshift Axe Build | -11 -10 -10 -10 -7 -5 -5 -5 -4 -3 -3 -2 -2 -2 ------- Run | Yrd Mat Min Sub Scr Fac Was Fac Fac Res Qua Res Tes Frg Slots Evolved 16 | . . . . . 10 . . 2 2 . 2 . . Power 2 | . . . . . 1 . . . . . 1 . . Propulsion 6 | . . . . . 4 . . 1 1 . . . . Utility 7 | . . . . . 4 . . 1 1 . 1 . . Weapon 1 | . . . . . 1 . . . . . . . . Parts Attached 89 | 8 1 1 9 8 17 2 5 9 4 14 5 2 4 Power 9 | 1 . 1 1 . 2 . . 1 1 2 . . . Engine 4 | 1 . 1 . . 2 . . . . . . . . Core 1 | . . . 1 . . . . . . . . . . Reactor 4 | . . . . . . . . 1 1 2 . . . Propulsion 32 | 2 . . 3 5 7 . 3 1 2 7 1 1 . Treads 4 | 2 . . . 2 . . . . . . . . . Leg 2 | . . . . . . . . . . 2 . . . Wheel 6 | . . . 3 3 . . . . . . . . . Hover 17 | . . . . . 6 . 3 1 2 3 1 1 . Flight 3 | . . . . . 1 . . . . 2 . . . Utility 34 | 2 1 . . 3 8 . 2 5 1 5 2 1 4 Device 17 | 1 . . . 1 4 . 1 4 1 2 1 1 1 Storage 5 | 1 1 . . . 1 . . . . 1 . . 1 Processor 5 | . . . . 1 1 . . 1 . 2 . . . Hackware 2 | . . . . . 1 . . . . . 1 . . Protection 3 | . . . . 1 1 . 1 . . . . . . Artifact 2 | . . . . . . . . . . . . . 2 Weapon 14 | 3 . . 5 . . 2 . 2 . . 2 . . Energy Gun 1 | . . . 1 . . . . . . . . . . Energy Cannon 1 | . . . . . . . . . . . 1 . . Ballistic Gun 7 | 3 . . 1 . . 2 . 1 . . . . . Ballistic Cannon 1 | . . . 1 . . . . . . . . . . Launcher 1 | . . . 1 . . . . . . . . . . Special Weapon . | . . . . . . . . . . . . . . Impact Weapon . | . . . . . . . . . . . . . . Slashing Weapon 3 | . . . 1 . . . . 1 . . 1 . . Piercing Weapon . | . . . . . . . . . . . . . . Special Melee Weapon . | . . . . . . . . . . . . . . Unidentified Prototypes 10 | . . . . . 2 . . . . 1 1 . 6 Parts Lost 33 | . . 1 4 . 1 . 1 . 6 2 2 . 16 Power 4 | . . 1 1 . . . . . . . 1 . 1 Propulsion 13 | . . . 1 . . . 1 . 3 2 . . 6 Utility 12 | . . . . . 1 . . . 3 . 1 . 7 Weapon 4 | . . . 2 . . . . . . . . . 2 Highest Loss Streak 16 | . . 1 2 . 1 . 1 . 6 2 1 . 16 To Critical Strikes 1 | . . . . . . . . . . . . . 1 Average Backups 11 | 3 5 5 11 13 13 13 14 14 14 11 11 12 7 Power . | . 1 . 1 . . . . . . . . . . Propulsion 1 | 1 2 2 2 1 1 1 . 2 4 1 . . . Utility 5 | . 1 2 2 7 7 8 9 10 8 5 6 8 6 Weapon 2 | 1 1 1 5 3 3 3 3 . . 1 2 1 . Tool/Special . | . . . . . . . . . . . . . . Unused Backups 43 | . . . 2 12 8 . 4 5 1 4 3 1 3 Power 3 | . . . . 2 . . . 1 . . . . . Propulsion 3 | . . . 2 . . . . . . 1 . . . Utility 27 | . . . . 7 6 . 4 2 1 2 1 1 3 Weapon 6 | . . . . 3 1 . . 1 . . 1 . . Tool/Special 4 | . . . . . 1 . . 1 . 1 1 . . Average Slot Usage (%) 88 | . 100 99 99 89 70 91 93 97 80 87 87 88 24 Engine 5 | . 14 13 11 . 1 11 11 6 1 . . . . Core 4 | . . . 2 14 4 . . . . . . . . Reactor 1 | . . . . . . . . 3 3 7 11 8 3 Treads 9 | . 28 28 18 7 3 . . . . . . . . Wheel 7 | . . . 9 18 3 . . . . . . . . Hover 9 | . . . . . 14 29 32 36 32 28 29 31 7 Device 12 | . 14 14 14 3 11 11 11 18 22 22 25 21 5 Storage 10 | . 14 14 14 14 7 11 10 5 4 4 4 4 2 Processor 3 | . . . . 4 1 5 5 9 9 9 8 8 1 Protection 1 | . . . . 3 6 5 5 2 . . . . . Ballistic Gun 10 | . 28 28 17 11 1 8 7 5 . . . . . Ballistic Cannon 1 | . . . 2 3 . . . . . . . . . Slashing Weapon 5 | . . . 5 7 5 5 5 6 4 5 5 8 1 Peak Build Rating 148 | 7 7 8 17 25 66 76 78 100 104 124 148 133 133 Average Rating 39 | 5 7 7 12 18 47 74 73 95 92 109 124 127 39 On Entrance 58 | . 7 7 8 16 22 66 76 74 98 73 124 120 133 Naked Turns 160 | . . . . . . . . . . . . . 160 Heaviest Build 111 | 12 27 29 36 34 46 55 55 61 59 65 74 54 111 Greatest Support 82 | 40 40 40 40 48 56 56 66 75 64 72 82 82 82 Greatest Overweight (x) 11 | . . . 1 3 5 . 1 . 1 1 1 . 11 Average Overweight (x) . | . . . . 1 . . . . . . . . . Largest Inventory Capacity 15 | 8 15 15 15 15 15 15 15 15 15 15 15 15 15 Average Capacity 14 | 7 12 15 15 15 15 15 15 15 15 14 15 15 9 Most Carried 15 | 6 6 6 15 15 15 15 15 15 15 15 15 15 15 Average Carried 12 | 3 5 5 11 13 13 13 14 14 14 12 14 14 8 Final Capacity 15 | 8 15 15 15 15 15 15 15 15 15 15 15 15 5 Final Carried 15 | 5 6 6 14 15 15 13 15 15 14 15 15 15 5 Class Distribution -------------------- 61% | Mutant 15% | Infiltrator-Ninja 11% | Scout 6% | Scavenger-Mutant Dominant Class ---------------- Mutant | -10/Materials Mutant | -10/Mines Mutant | -10/Subcaves Mutant | -7/Scraptown Derelict-Mutant | -5/Factory Scout | -5/Waste Scout | -5/Factory Infiltrator-Ninja | -4/Factory Infiltrator-Ninja | -3/Research Infiltrator-Ninja | -3/Quarantine Infiltrator-Ninja | -2/Research Infiltrator-Ninja | -2/Testing Mutant | -2/Protoforge Resources | -11 -10 -10 -10 -7 -5 -5 -5 -4 -3 -3 -2 -2 -2 ----------- Run | Yrd Mat Min Sub Scr Fac Was Fac Fac Res Qua Res Tes Frg Matter Collected 1570 | 266 . 133 185 139 261 138 98 100 . 250 . . . Remotely . | . . . . . . . . . . . . . . Salvage Created 1488 | 12 . 204 314 . 245 114 133 138 135 193 . . . Parts 73 | 5 . 14 12 . 9 . 4 6 4 17 2 . . Haulers Intercepted 2 | . . . . . 1 . . 1 . . . . . Recyclers Shooed 2 | 1 . . . . . . 1 . . . . . . Parts Field Recycled . | . . . . . . . . . . . . . . Retrieved Matter . | . . . . . . . . . . . . . . Parts Self-Destructed 8 | . . . 8 . . . . . . . . . . Prevented . | . . . . . . . . . . . . . . Kills | -11 -10 -10 -10 -7 -5 -5 -5 -4 -3 -3 -2 -2 -2 ------- Run | Yrd Mat Min Sub Scr Fac Was Fac Fac Res Qua Res Tes Frg Combat Hostiles Destroyed 16 | . . 4 6 . 2 1 . . . 3 . . . Melee 5 | . . . . . 2 . . . . 3 . . . Guns 10 | . . 4 5 . . 1 . . . . . . . Cannons 1 | . . . 1 . . . . . . . . . . Classes Destroyed 11 | 1 . 2 2 . 1 1 2 1 . 1 . . . Builder 2 | . . 1 . . . . . . . . 1 . . Tunneler 1 | 1 . . . . . . . . . . . . . Hauler 2 | . . . . . 1 . . 1 . . . . . Recycler 2 | . . . . . . . 1 . 1 . . . . Operator 1 | . . . . . . . . 1 . . . . . Watcher 2 | . . . . . . . 1 1 . . . . . Grunt 4 | . . 4 . . . . . . . . . . . Sentry 3 | . . . 1 . 2 . . . . . . . . Programmer 3 | . . . . . . . . . . 3 . . . Compactor 1 | . . . . . . 1 . . . . . . . Subdweller 5 | . . . 5 . . . . . . . . . . Best Kill Streak 3 | 1 . 3 2 . 1 1 1 2 1 1 1 . . Combat Bots Only 2 | . . 2 2 . 1 1 . . . 1 . . . Max Kills in Single Turn 2 | 1 . 1 2 . 1 1 1 1 1 1 1 . . Gunslinging 1 | . . . 1 . . . . . . . . . . Exploded . | . . . . . . . . . . . . . . Melee 1 | . . . . . 1 . . . . 1 . . . Uniques/NPCs Destroyed . | . . . . . . . . . . . . . . Combat | -11 -10 -10 -10 -7 -5 -5 -5 -4 -3 -3 -2 -2 -2 -------- Run | Yrd Mat Min Sub Scr Fac Was Fac Fac Res Qua Res Tes Frg Hostile Shots Fired 327 | . . 49 51 . 25 . 18 23 40 18 33 7 63 Missed 130 | . . 16 16 . 6 . 7 11 21 4 22 2 25 Hits 197 | . . 33 35 . 19 . 11 12 19 14 11 5 38 Projectile 197 | . . 33 35 . 19 . 11 12 19 14 11 5 38 Critical Strikes 5 | . . 1 2 . 1 . . . . . . . 1 Damage Taken 5397 | . . 421 688 . 231 51 167 216 455 325 281 . 2562 Core 1867 | . . 21 201 . 19 . . 68 115 24 48 . 1371 Absorbed by Shields 45 | . . . . . 25 . . . . . . . 20 Redirected to Core 156 | . . . . . . . . . . . . . 156 Regen/Repaired (Parts) 525 | . . . . 525 . . . . . . . . . Core Remaining (%) 78 | 100 . . . 11 . . 98 94 . 89 . . . Volleys Fired 78 | 4 1 23 33 . 1 14 . . . . 2 . . Largest 2 | 2 2 2 2 . 1 2 . . . . 1 . . Hottest 300 | 40 40 40 78 . 28 66 . . . . 300 . . Shots Fired 138 | 8 2 46 51 . 1 27 1 . . . 2 . . Gun 132 | 8 2 46 47 . 1 27 1 . . . . . . Cannon 6 | . . . 4 . . . . . . . 2 . . Launcher . | . . . . . . . . . . . . . . Special . | . . . . . . . . . . . . . . Kinetic 130 | 8 2 46 45 . 1 27 1 . . . . . . Thermal 2 | . . . . . . . . . . . 2 . . Explosive . | . . . . . . . . . . . . . . Electromagnetic 6 | . . . 6 . . . . . . . . . . Robot Hit Streak 22 | 2 4 7 22 . . 8 1 . . . . . . Robot Miss Streak 3 | 1 . 3 2 . . 3 . . . . . . . Penetration Max . | . . . . . . . . . . . . . . Secondary Targets 4 | . . 2 2 . . . . . . . . . . Max Gunslinging Chain 1 | . . 1 1 . . . . . . . . . . Shots Hit Robots 129 | 5 2 32 36 . 7 17 11 5 2 11 1 . . Core Hits 47 | 3 . 11 12 . 6 3 3 3 1 4 1 . . Critical Kills 1 | . . . . . . . . . . . 1 . . Critical Parts Destroyed . | . . . . . . . . . . . . . . Critical Strikes 4 | . . . . . . . 1 . . 2 1 . . Destroy 1 | . . . . . . . . . . . 1 . . Sever 3 | . . . . . . . 1 . . 2 . . . Melee Attacks 90 | . . . 1 . 11 1 15 15 9 19 9 5 5 Impact . | . . . . . . . . . . . . . . Slashing 90 | . . . 1 . 11 1 15 15 9 19 9 5 5 Piercing . | . . . . . . . . . . . . . . Sneak Attacks 6 | . . . . . 1 . 2 2 1 . . . . Combat Hostiles . | . . . . . . . . . . . . . . Follow-up Attacks 3 | . . . . . . . . . . 2 1 . . Damage Inflicted 3735 | 40 16 338 689 . 318 501 535 444 87 536 231 . . Guns 1472 | 40 16 338 555 . . 501 22 . . . . . . Cannons 258 | . . . 58 . . . . . . . 200 . . Explosions 76 | . . . 76 . . . . . . . . . . Melee 1929 | . . . . . 318 . 513 444 87 536 31 . . Ramming . | . . . . . . . . . . . . . . Kinetic 1441 | 40 16 338 524 . . 501 22 . . . . . . Thermal 276 | . . . 76 . . . . . . . 200 . . Explosive . | . . . . . . . . . . . . . . Electromagnetic 89 | . . . 89 . . . . . . . . . . Impact . | . . . . . . . . . . . . . . Slashing 1929 | . . . . . 318 . 513 444 87 536 31 . . Piercing . | . . . . . . . . . . . . . . Highest Corruption 44 | . . . . . 1 15 17 . . 5 . . 44 Average Corruption 15 | . . . . . 1 9 15 . . 4 . . 41 Corruption Purged . | . . . . . . . . . . . . . . Corruption Blocked . | . . . . . . . . . . . . . . Effects 39 | . . . . . 1 6 12 . . 4 . . 16 Message Errors 3 | . . . . . . 1 1 . . . . . 1 Matter Fused 10 | . . . . . 1 . 4 . . . . . 5 Heat Flow Errors 6 | . . . . . . 2 1 . . 2 . . 1 Energy Discharges 5 | . . . . . . 1 3 . . . . . 1 Parts Rejected 1 | . . . . . . . . . . . . . 1 Data Loss (minor) 5 | . . . . . . . 1 . . 2 . . 2 Data Loss (major) 1 | . . . . . . 1 . . . . . . . Misfires 1 | . . . . . . . 1 . . . . . . Misdirections 6 | . . . . . . . 1 . . . . . 5 Weapon Failures 1 | . . . . . . 1 . . . . . . . Overload Shots . | . . . . . . . . . . . . . . Overflow Damage 217 | . . . . . . . 99 112 . 6 . . . Projectiles . | . . . . . . . . . . . . . . Explosions . | . . . . . . . . . . . . . . Melee 217 | . . . . . . . 99 112 . 6 . . . Knockbacks . | . . . . . . . . . . . . . . Impact . | . . . . . . . . . . . . . . Kinetic . | . . . . . . . . . . . . . . Secondary . | . . . . . . . . . . . . . . Self-Inflicted Damage . | . . . . . . . . . . . . . . Shots . | . . . . . . . . . . . . . . Rammed . | . . . . . . . . . . . . . . Targets Rammed . | . . . . . . . . . . . . . . Kicked . | . . . . . . . . . . . . . . Crushed . | . . . . . . . . . . . . . . Highest Temperature 262 | . . 49 11 . . 228 220 255 100 223 262 209 74 Average Temperature 94 | . . 16 6 . . 93 90 82 41 123 130 114 9 Received Heat Transfer 692 | . . 255 165 . 30 . . 39 9 . 36 . 158 Siege Activations . | . . . . . . . . . . . . . . Martial Activations . | . . . . . . . . . . . . . . Shielding Activations . | . . . . . . . . . . . . . . Robots Disrupted . | . . . . . . . . . . . . . . Combat Hostiles . | . . . . . . . . . . . . . . Robots Corrupted . | . . . . . . . . . . . . . . Combat Hostiles . | . . . . . . . . . . . . . . Parts Fried . | . . . . . . . . . . . . . . Impact Corruptions . | . . . . . . . . . . . . . . Robots Melted . | . . . . . . . . . . . . . . Combat Hostiles . | . . . . . . . . . . . . . . Parts Melted . | . . . . . . . . . . . . . . Heat Transferred 100 | . . . 100 . . . . . . . . . . Parts Sabotaged . | . . . . . . . . . . . . . . Parts Stolen . | . . . . . . . . . . . . . . Parts Stripped . | . . . . . . . . . . . . . . Power Chain Reactions 1 | . . . 1 . . . . . . . . . . Alert | -11 -10 -10 -10 -7 -5 -5 -5 -4 -3 -3 -2 -2 -2 ------- Run | Yrd Mat Min Sub Scr Fac Was Fac Fac Res Qua Res Tes Frg Maximum Alert Level 1 | . . . . . . . 1 . . . . . . Low Security (%) 99 | 100 100 100 . . 100 100 96 100 100 100 100 100 100 Level 1 . | . . . . . . . 3 . . . . . . Level 2 . | . . . . . . . . . . . . . . Level 3 . | . . . . . . . . . . . . . . Level 4 . | . . . . . . . . . . . . . . Level 5 . | . . . . . . . . . . . . . . High Security . | . . . . . . . . . . . . . . Max Security . | . . . . . . . . . . . . . . Peak Influence 265 | 5 . 45 . . 37 34 265 135 51 40 61 61 45 Initial 129 | . . . . . . 9 4 129 16 . 11 17 17 Average 28 | . . 12 . . 8 12 129 81 7 11 15 22 9 Influence Increases 1500 | 5 . 105 20 . 133 94 550 63 64 188 92 102 84 Destroy 0b10 Robot/C 360 | . . 80 20 . 40 . 160 . . 60 . . . Destroy 0b10 Robot/NC 50 | 5 . 5 . . 5 . 10 15 5 . 5 . . Destroy Leader 78 | . . 20 . . 22 . 22 4 . 10 . . . Allied During Kill 24 | . . . . . . . 24 . . . . . . Successful Hack 54 | . . . . . . . 5 . . 28 . 21 . Disable Machine 270 | . . . . . 15 . 120 . . 90 15 30 . Destroy Structure 259 | . . . . . 6 94 44 14 14 . 72 6 9 Partial Spotted 105 | . . . . . 15 . 15 30 15 . . . 30 Lose Combat Pursuer 300 | . . . . . 30 . 150 . 30 . . 45 45 Influence Decreases 1500 | 5 . 105 20 . 106 115 291 296 96 168 81 102 115 Entered New Map 209 | . . . . . . 18 2 136 16 . 9 14 14 Time Decay 987 | 5 . 95 20 . 96 67 129 160 39 149 59 88 80 Lost Part 124 | . . 10 . . 10 . 10 . 41 19 13 . 21 Lost Ally 180 | . . . . . . 30 150 . . . . . . Squads Dispatched 29 | . 1 . . . 6 . 6 5 5 1 3 2 . Investigation 13 | . . . . . 3 . 2 2 3 . 3 . . Extermination 5 | . . . . . 1 . . 1 . 1 . 2 . Reinforcement 9 | . 1 . . . 2 . 3 1 2 . . . . Assault . | . . . . . . . . . . . . . . Garrison 2 | . . . . . . . 1 1 . . . . . Intercept . | . . . . . . . . . . . . . . Searches Triggered . | . . . . . . . . . . . . . . Construction Impeded . | . . . . . . . . . . . . . . Haulers Reinforced 2 | . . . . . 1 . 1 . . . . . . Active Scanning Responses . | . . . . . . . . . . . . . . Cargo Convoy Interrupts . | . . . . . . . . . . . . . . Stealth | -11 -10 -10 -10 -7 -5 -5 -5 -4 -3 -3 -2 -2 -2 --------- Run | Yrd Mat Min Sub Scr Fac Was Fac Fac Res Qua Res Tes Frg Distress Signals 5 | . . . . . 2 . . 3 . . . . . Communications Jammed 2 | . . . . . . . . . . . . 2 . Distress Signals . | . . . . . . . . . . . . . . Times Spotted 124 | . 2 4 7 . 12 6 23 25 11 8 16 8 2 Peak Tracking Total 17 | . 3 2 2 . 5 3 12 17 9 3 7 5 5 Tactical Retreats 14 | . . . . . 3 . 2 3 1 . 3 1 1 Traps | -11 -10 -10 -10 -7 -5 -5 -5 -4 -3 -3 -2 -2 -2 ------- Run | Yrd Mat Min Sub Scr Fac Was Fac Fac Res Qua Res Tes Frg Traps Triggered 12 | . . . 1 . 1 . 2 1 4 1 1 . 1 Indirectly . | . . . . . . . . . . . . . . Trap Hack Attempts . | . . . . . . . . . . . . . . Triggered . | . . . . . . . . . . . . . . Disarmed . | . . . . . . . . . . . . . . Reprogrammed . | . . . . . . . . . . . . . . Reused . | . . . . . . . . . . . . . . Traps Extracted . | . . . . . . . . . . . . . . Installed . | . . . . . . . . . . . . . . Triggered . | . . . . . . . . . . . . . . Machines | -11 -10 -10 -10 -7 -5 -5 -5 -4 -3 -3 -2 -2 -2 ---------- Run | Yrd Mat Min Sub Scr Fac Was Fac Fac Res Qua Res Tes Frg Machines Disabled 18 | . . . . . 1 . 8 . . 6 1 2 . Max in Single Turn 1 | . . . . . 1 . 1 . . 1 1 1 . Garrison Access 1 | . . . . . . . . 1 . . . . . Machines Repaired . | . . . . . . . . . . . . . . Machines Dismantled . | . . . . . . . . . . . . . . Machines Sabotaged . | . . . . . . . . . . . . . . Overloaded Fab Kills . | . . . . . . . . . . . . . . Hacking | -11 -10 -10 -10 -7 -5 -5 -5 -4 -3 -3 -2 -2 -2 --------- Run | Yrd Mat Min Sub Scr Fac Was Fac Fac Res Qua Res Tes Frg Machines Accessed 44 | . 1 . . 3 5 . 7 6 4 5 5 7 1 Terminals 23 | . 1 . . . 2 . 4 2 1 5 2 5 1 Fabricators 6 | . . . . . 1 . 2 . . . 1 2 . Repair Stations . | . . . . . . . . . . . . . . Recycling Units 10 | . . . . . 2 . 1 2 3 . 2 . . Scanalyzers . | . . . . . . . . . . . . . . Garrison Access 2 | . . . . . . . . 2 . . . . . Total Hacks 74 | . 4 . . 8 9 . 10 9 7 7 10 9 1 Successful 28 | . 2 . . 8 5 . 2 3 3 2 2 1 . Failed 46 | . 2 . . . 4 . 8 6 4 5 8 8 1 Catastrophic 16 | . 1 . . . 1 . 3 3 . 3 2 3 . Database Lockouts . | . . . . . . . . . . . . . . Manual 32 | . 4 . . . 8 . 4 5 6 . 4 1 . Terminals 38 | . 4 . . . 6 . 4 3 1 7 5 7 1 Fabricators 7 | . . . . . 1 . 3 . . . 1 2 . Repair Stations . | . . . . . . . . . . . . . . Recycling Units 18 | . . . . . 2 . 3 3 6 . 4 . . Scanalyzers . | . . . . . . . . . . . . . . Garrison Access 3 | . . . . . . . . 3 . . . . . Terminal Hacks 12 | . . . . 8 . . 1 . . 2 1 . . Record 4 | . . . . 4 . . . . . . . . . Robot Analysis 3 | . . . . 3 . . . . . . . . . Open DSF 1 | . . . . . . . 1 . . . . . . Emergency Access Points 1 | . . . . . . . . . . 1 . . . Recycling Unit Index 1 | . . . . . . . . . . . 1 . . Zone Layout 1 | . . . . . . . . . . 1 . . . Proto ID Catalog 1 | . . . . 1 . . . . . . . . . Fabricator Hacks 3 | . . . . . 1 . 1 . . . . 1 . Network Status 2 | . . . . . 1 . 1 . . . . . . Build 1 | . . . . . . . . . . . . 1 . Repair Station Hacks . | . . . . . . . . . . . . . . Recycling Unit Hacks . | . . . . . . . . . . . . . . Scanalyzer . | . . . . . . . . . . . . . . Garrison Access Hacks 1 | . . . . . . . . 1 . . . . . Seal Access 1 | . . . . . . . . 1 . . . . . Unauthorized Hacks 12 | . 2 . . . 4 . . 2 3 . 1 . . Terminals 4 | . 2 . . . 2 . . . . . . . . Botnet 2 | . 1 . . . 1 . . . . . . . . Skim 2 | . 1 . . . 1 . . . . . . . . Fabricators . | . . . . . . . . . . . . . . Repair Stations . | . . . . . . . . . . . . . . Recycling Units 8 | . . . . . 2 . . 2 3 . 1 . . Fedlink 8 | . . . . . 2 . . 2 3 . 1 . . Scanalyzers . | . . . . . . . . . . . . . . Garrison Access . | . . . . . . . . . . . . . . Data Cores Recovered 1 | . . . . . . . . 1 . . . . . Used . | . . . . . . . . . . . . . . Hacking Detections 31 | . 1 . . . 2 . 5 3 2 5 5 7 1 Full Trace Events 4 | . . . . . 1 . 1 . . . 2 . . Feedback Events 1 | . . . . . 1 . . . . . . . . Corruption 1 | . . . . . 1 . . . . . . . . Feedback Blocked . | . . . . . . . . . . . . . . Robot Schematics Acquired . | . . . . . . . . . . . . . . Robots Built . | . . . . . . . . . . . . . . Authchips . | . . . . . . . . . . . . . . Time . | . . . . . . . . . . . . . . Total Robot Build Rating . | . . . . . . . . . . . . . . Part Schematics Acquired . | . . . . . . . . . . . . . . Parts Built 1 | . . . . . . . . . . . . 1 . Authchips . | . . . . . . . . . . . . . . Time 46 | . . . . . . . . . . . . 46 . Total Part Build Rating 9 | . . . . . . . . . . . . 9 . Parts Repaired . | . . . . . . . . . . . . . . Time . | . . . . . . . . . . . . . . Parts Recycled . | . . . . . . . . . . . . . . Recycled Matter . | . . . . . . . . . . . . . . Retrieved Matter . | . . . . . . . . . . . . . . Retrieved Components . | . . . . . . . . . . . . . . Parts Scanalyzed . | . . . . . . . . . . . . . . Part Schematics Acquired . | . . . . . . . . . . . . . . Parts Damaged . | . . . . . . . . . . . . . . Bothacking | -11 -10 -10 -10 -7 -5 -5 -5 -4 -3 -3 -2 -2 -2 ------------ Run | Yrd Mat Min Sub Scr Fac Was Fac Fac Res Qua Res Tes Frg Used RIF Installer . | . . . . . . . . . . . . . . Robots Hacked . | . . . . . . . . . . . . . . Non-combat . | . . . . . . . . . . . . . . Combat . | . . . . . . . . . . . . . . Robot Hacks Applied . | . . . . . . . . . . . . . . Relay Couplers Released . | . . . . . . . . . . . . . . Fabnet Peak Effective % . | . . . . . . . . . . . . . . Robots Rewired . | . . . . . . . . . . . . . . Allies Hacked . | . . . . . . . . . . . . . . Hacks Repelled . | . . . . . . . . . . . . . . Allies | -11 -10 -10 -10 -7 -5 -5 -5 -4 -3 -3 -2 -2 -2 -------- Run | Yrd Mat Min Sub Scr Fac Was Fac Fac Res Qua Res Tes Frg Total Allies 18 | . . . . . . 18 . . . . . . . Largest Group 18 | . . . . . . 18 11 . . . . . . Highest-Rated Group 656 | . . . . . . 656 478 . . . . . . Highest-Rated Ally 50 | . . . . . . 50 50 . . . . . . Total Orders . | . . . . . . . . . . . . . . Ally Attacks 105 | . . . . . . 63 42 . . . . . . Total Damage 6403 | . . . . . . 4635 1768 . . . . . . Kills 19 | . . . . . . 10 9 . . . . . . Allies Corrupted . | . . . . . . . . . . . . . . Allies Melted . | . . . . . . . . . . . . . . Intel | -11 -10 -10 -10 -7 -5 -5 -5 -4 -3 -3 -2 -2 -2 ------- Run | Yrd Mat Min Sub Scr Fac Was Fac Fac Res Qua Res Tes Frg Active Infowar (turns) 4964 | 36 231 312 1722 421 445 158 283 323 161 364 177 207 124 Optics 458 | . . . . . . . . 293 161 4 . . . Sensors 1726 | . . . . . 90 158 283 313 87 364 150 207 74 Structural 2126 | . . . . 1 445 158 283 313 146 364 160 207 49 Seismic 2721 | 36 231 312 1722 420 . . . . . . . . . Jamming 871 | . . . . . . . . . . 363 177 207 124 ECM 777 | . . . . . 134 . . 150 58 217 160 58 . Robot Analysis Total 3 | . . . . 3 . . . . . . . . . Derelict Logs Recovered 7 | . . 1 1 5 . . . . . . . . . Drone Launches . | . . . . . . . . . . . . . . Drone Recoveries . | . . . . . . . . . . . . . . Exploration | -11 -10 -10 -10 -7 -5 -5 -5 -4 -3 -3 -2 -2 -2 ------------- Run | Yrd Mat Min Sub Scr Fac Was Fac Fac Res Qua Res Tes Frg Turns Passed 6464 | 99 231 312 1722 1689 447 158 283 323 161 371 177 207 284 Spaces Moved 7060 | 63 136 145 1043 1342 596 188 689 621 332 545 411 566 383 Core 239 | 28 . . . . . . . . . . . . 211 Treads 1233 | 35 136 145 718 199 . . . . . . . . . Legs 64 | . . . . . . . . . . 64 . . . Wheels 1569 | . . . 325 1143 101 . . . . . . . . Hover 3955 | . . . . . 495 188 689 621 332 481 411 566 172 Flight . | . . . . . . . . . . . . . . Fastest Speed 17 | 50 160 160 110 100 30 34 17 17 20 20 20 20 20 Average Speed 72 | 111 160 160 153 118 60 34 26 19 22 36 21 20 52 Slowest Speed 920 | 160 160 160 240 250 330 34 92 20 92 170 92 21 920 Overloaded Moves 126 | . . . . . . . 39 52 35 . . . . Propulsion Burnouts . | . . . . . . . . . . . . . . Robots Hopped . | . . . . . . . . . . . . . . Potential Cave-ins 190 | . . . . . . . . . . . 2 . 188 Cave-ins Triggered 13 | . . . . . . . . . . . . . 13 Exploration Rate (%) 37 | 5 27 26 45 85 19 90 20 24 15 79 18 59 9 Regions Visited 13 Branch Regions 6 Pre-discovered Areas 5 | . . 1 2 1 1 . . . . . . . . Known Exits Taken 6 | . . . . . . . 1 1 1 1 1 1 . Unknown Exits Taken 5 | 1 1 1 1 1 . . . . . . . . . Scrap Searched 6 | . . . . 6 . . . . . . . . . Spaces Dug 30 | . . . . . 3 1 . 7 7 . 7 2 3 Terrain Destroyed 66 | . . . 8 . 3 1 . 7 7 . 35 2 3 Melee 30 | . . . . . 3 1 . 7 7 . 7 2 3 Projectile 28 | . . . . . . . . . . . 28 . . AOE 8 | . . . 8 . . . . . . . . . . Terrain Rammed . | . . . . . . . . . . . . . . Walls Destroyed . | . . . . . . . . . . . . . . Machines Disabled . | . . . . . . . . . . . . . . Actions | -11 -10 -10 -10 -7 -5 -5 -5 -4 -3 -3 -2 -2 -2 --------- Run | Yrd Mat Min Sub Scr Fac Was Fac Fac Res Qua Res Tes Frg Total 8204 | 85 148 184 1118 1452 681 252 772 805 405 698 493 649 462 Wait 620 | . 8 15 14 49 9 48 39 123 51 88 40 71 65 Move 7035 | 62 135 144 1042 1341 596 187 688 620 331 544 410 565 370 Hop . | . . . . . . . . . . . . . . Pick Up 132 | 11 2 1 15 24 20 . 12 12 1 20 10 3 1 Fast Attach 21 | 1 . . . . 7 . 3 2 7 . . 1 . Attach 76 | 6 . 1 4 8 12 2 3 3 3 14 11 . 9 Detach 17 | . . . . 4 5 . 1 . 1 1 5 . . Swap 29 | 1 1 . 5 6 1 . 2 4 . 5 1 3 . Drop 86 | . 1 . 4 20 19 . 9 13 2 9 6 2 1 Fire 78 | 4 1 23 33 . 1 14 . . . . 2 . . Melee 84 | . . . 1 . 11 1 15 15 9 17 8 4 3 Ram . | . . . . . . . . . . . . . . Kick . | . . . . . . . . . . . . . . Crush . | . . . . . . . . . . . . . . Escape Stasis 26 | . . . . . . . . 13 . . . . 13 Rewire . | . . . . . . . . . . . . . . Trap . | . . . . . . . . . . . . . . Miscellaneous . | . . . . . . . . . . . . . . Route ------- -11/Scrapyard -10/Materials -10/Mines -10/Subcaves (discovered 2 exits: [*Mat] / *Scr) -7/Scraptown (discovered 2 exits: *Fac x2) -5/Factory -5/Waste -5/Factory (discovered 2 exits: *Fac / *Upp) -4/Factory (discovered 2 exits: *Res x2) -3/Research (discovered 3 exits: Res x2 / *Qua) -3/Quarantine -2/Research (discovered 2 exits: *Tes x2) -2/Testing (discovered 3 exits: *Acc / *Sec / *Frg) -2/Protoforge History --------- Turn | Location | Event 6 | -11/Scrapyard | Discovered new exit (range 15) 100 | -11/Scrapyard | Entered Materials 302 | -10/Materials | Discovered new exit (range 12) 303 | -10/Materials | Build established: Mutant 331 | -10/Materials | Entered Mines 381 | -10/Mines | Met a Derelict bent on vengeance 403 | -10/Mines | Learned location of Recycling (-7) 450 | -10/Mines | Discovered new exit (range 13) 603 | -10/Mines | Assembled infested the area 608 | -10/Mines | Assisted by a Guerilla fighting off Assembled 643 | -10/Mines | Entered Subcaves 644 | -10/Subcaves | Shifting Twisted Machinery released Sub. Shrapnel Launcher 644 | -10/Subcaves | Approached by a straggling Scientist 661 | -10/Subcaves | Shifting Twisted Machinery released Sub. Laser 677 | -10/Subcaves | Learned location of Zion (-7) 677 | -10/Subcaves | Met a Zionite searching for "candidates" 709 | -10/Subcaves | Shifting Twisted Machinery released Sub. Monowheel 734 | -10/Subcaves | Shifting Twisted Machinery released Barrage Gun 775 | -10/Subcaves | Discovered new exit (range 16) 1016 | -10/Subcaves | Scientist uncovered a shortcut to Scraptown 1303 | -10/Subcaves | A swath of the cavern ceiling suddenly collapsed 2042 | -10/Subcaves | Core integrity fell below 50% 2112 | -10/Subcaves | Core integrity fell below 20% 2365 | -10/Subcaves | Entered Scraptown 2470 | -7/Scraptown | Scanned Subdweller tech in exchange for log data 2473 | -7/Scraptown | Learned location of Warlord (-5) 2474 | -7/Scraptown | Learned Research machine intel 2475 | -7/Scraptown | Learned 8 Research zone layouts 2477 | -7/Scraptown | Learned Research garrison access intel 2538 | -7/Scraptown | Visited UFD Registry 2538 | -7/Scraptown | Registered with UFD as "Microslider" 2576 | -7/Scraptown | Visited Spacefarers 2585 | -7/Scraptown | Visited TADAMA 2597 | -7/Scraptown | Build established: Scavenger-Mutant 2654 | -7/Scraptown | Guru changed UFD alias to "Cargospawn" 2689 | -7/Scraptown | Discovered new exit (range 13) 2704 | -7/Scraptown | Heard Great Nut preacher, LISTEN AND RECITE! 2979 | -7/Scraptown | Build established: Mutant 3162 | -7/Scraptown | Visited Shadow of the Wyrm 3179 | -7/Scraptown | Visited Cyclists 3188 | -7/Scraptown | Entered Cyclist Reading Room 3318 | -7/Scraptown | Visited Junk Repository 3365 | -7/Scraptown | Visited Abandonware Association 3377 | -7/Scraptown | Learned abandonware demo "OVRCLOCK.EXE" 3379 | -7/Scraptown | Learned abandonware demo "TRNCOAT.EXE" 3379 | -7/Scraptown | Learned abandonware demo "POISON.EXE" 3407 | -7/Scraptown | Visited Analyses Database 3430 | -7/Scraptown | Visited Research Penetration Think Tank 3468 | -7/Scraptown | Delivered Scrap Shield to a Scientist 3518 | -7/Scraptown | Visited Curators Association 3533 | -7/Scraptown | Visited Observation Area 3548 | -7/Scraptown | Visited Science Guys 3725 | -7/Scraptown | Visited CR-KLE's Repair Center 3737 | -7/Scraptown | CR-KLE repaired 6 parts 4003 | -7/Scraptown | Met Optimus 4003 | -7/Scraptown | Accepted into 0bPrime 4052 | -7/Scraptown | Discovered new exit (range 3) 4054 | -7/Scraptown | Entered Factory 4054 | -5/Factory | Evolved 10 slots: Power x1, Propulsion x4, Utility x4, Weapon x1 4358 | -5/Factory | Loaded intel: 8 recycling unit locations 4463 | -5/Factory | Learned location of Protoforge (-2) 4501 | -5/Factory | Manually triggered Chute Trap 4501 | -5/Factory | Sucked down chute 4501 | -5/Factory | Entered Waste 4513 | -5/Waste | Spotted C-40 Crusher 4513 | -5/Waste | Spotted C-40 Crusher 4516 | -5/Waste | EMP discharged 4516 | -5/Waste | Spotted C-40 Crusher 4525 | -5/Waste | Met Warlord forces unprepared to attack 4531 | -5/Waste | Allies destroyed C-40 Crusher 4539 | -5/Waste | Allies destroyed C-40 Crusher 4542 | -5/Waste | Destroyed C-40 Crusher 4561 | -5/Waste | Spotted C-40 Crusher 4565 | -5/Waste | Spotted C-40 Crusher 4568 | -5/Waste | Allies destroyed C-40 Crusher 4573 | -5/Waste | Lost 7 allies 4573 | -5/Waste | Allies destroyed C-40 Crusher 4585 | -5/Waste | Spotted C-40 Crusher 4601 | -5/Waste | Allies destroyed C-40 Crusher 4606 | -5/Waste | Discovered new exit (range 13) 4611 | -5/Waste | Identified exit to Factory 4616 | -5/Waste | EMP discharged 4616 | -5/Waste | System corruption reached 10% 4659 | -5/Waste | Entered Factory 4659 | -5/Factory | Accompanied by 11 allies 4671 | -5/Factory | Identified exit to DSF 4684 | -5/Factory | Build established: Scout 4795 | -5/Factory | Discovered new exit (range 10) 4797 | -5/Factory | Identified exit to Upper Caves 4824 | -5/Factory | Lost 5 allies 4860 | -5/Factory | Garrison activated, responded to threat 4935 | -5/Factory | Discovered new exit (range 12) 4937 | -5/Factory | Identified exit to Factory 4942 | -5/Factory | Entered another Factory area 4942 | -4/Factory | Evolved 2 slots: Propulsion x1, Utility x1 5063 | -4/Factory | Discovered new exit (range 4) 5064 | -4/Factory | Identified exit to Research 5177 | -4/Factory | Garrison activated, responded to threat 5229 | -4/Factory | Discovered exit to Research (range 4) 5230 | -4/Factory | Spotted B-86 Titan 5244 | -4/Factory | Loaded intel: 8 recycling unit locations 5265 | -4/Factory | Entered Research 5265 | -3/Research | Evolved 2 slots: Propulsion x1, Utility x1 5266 | -3/Research | Identified exit to Research 5266 | -3/Research | Identified exit to Quarantine 5267 | -3/Research | Loaded intel: 118 machine locations 5268 | -3/Research | Loaded intel: 4 garrison access locations 5269 | -3/Research | Loaded intel: 5 recycling unit locations 5392 | -3/Research | Build established: Infiltrator-Ninja 5422 | -3/Research | Spotted B-86 Titan 5426 | -3/Research | Entered Quarantine 5432 | -3/Quarantine | Found Alien Artifact 5438 | -3/Quarantine | Found Alien Artifact 5457 | -3/Quarantine | Lost 6 parts (3n3u) 5555 | -3/Quarantine | Found Alien Artifact 5559 | -3/Quarantine | Found Alien Artifact 5584 | -3/Quarantine | Found Alien Artifact 5593 | -3/Quarantine | Found Alien Artifact 5602 | -3/Quarantine | Discovered exit to Research (range 15) 5705 | -3/Quarantine | Found Alien Energy Cannon 5789 | -3/Quarantine | Spotted Alpha 7 5797 | -3/Quarantine | Entered Research 5797 | -2/Research | Evolved 2 slots: Power x1, Utility x1 5798 | -2/Research | Identified exit to Testing 5850 | -2/Research | Discovered exit to Testing (range 5) 5862 | -2/Research | Loaded intel: 5 recycling unit locations 5908 | -2/Research | Identified Core Cannon 5974 | -2/Research | Entered Testing 6080 | -2/Testing | Found Prototype Device 6130 | -2/Testing | Discovered new exit (range 15) 6133 | -2/Testing | Identified exit to Access 6150 | -2/Testing | Fabricated Centrium Leg? 6156 | -2/Testing | Spotted Fortress 6179 | -2/Testing | Discovered new exit (range 6) 6179 | -2/Testing | Discovered new exit (range 5) 6180 | -2/Testing | Identified exit to Protoforge 6180 | -2/Testing | Identified exit to Section 7 6181 | -2/Testing | Entered Protoforge 6196 | -2/Protoforge | Spotted Hotshot 6216 | -2/Protoforge | Identified Terrabomb (x2) 6216 | -2/Protoforge | Used Terrabomb 6223 | -2/Protoforge | Crushed by falling debris 6224 | -2/Protoforge | System corruption reached 10% 6225 | -2/Protoforge | Used Terrabomb 6226 | -2/Protoforge | Crushed by falling debris 6230 | -2/Protoforge | Crushed by falling debris 6231 | -2/Protoforge | System corruption reached 30% 6247 | -2/Protoforge | Crushed by falling debris 6255 | -2/Protoforge | Crushed by falling debris 6260 | -2/Protoforge | Superfortress began startup sequence 6267 | -2/Protoforge | Crushed by falling debris 6282 | -2/Protoforge | Identified Phase Armor 6284 | -2/Protoforge | Identified Phase Redirector 6285 | -2/Protoforge | Identified Subatomic Replicator 6285 | -2/Protoforge | Used Subatomic Replicator to replicate Imp. Linear Gravjet 6286 | -2/Protoforge | Identified Exp. Hardlight Generator 6305 | -2/Protoforge | Lost 16 parts (1p6n7u2w) 6305 | -2/Protoforge | Released all parts (9) 6306 | -2/Protoforge | Crushed by falling debris 6307 | -2/Protoforge | Crushed by falling debris 6309 | -2/Protoforge | Crushed by falling debris 6321 | -2/Protoforge | Core integrity fell below 50% 6411 | -2/Protoforge | Crushed by falling debris 6415 | -2/Protoforge | Crushed by falling debris 6416 | -2/Protoforge | Crushed by falling debris 6419 | -2/Protoforge | Core integrity fell below 20% 6429 | -2/Protoforge | Crushed by falling debris 6465 | -2/Protoforge | Destroyed by Y-72 Warden with Railgun Last Messages --------------- 06417_ M-28 Smith destroyed. 06418_ Penetrated by Slug. 06419_ The unstable cave ceiling collapses. 06419_ Y-72 Warden crushed by falling debris. 06426_ U-05 Engineer builds a Wall. 06428_ The unstable cave ceiling collapses. 06428_ Y-72 Warden crushed by falling debris. 06429_ The unstable cave ceiling collapses. 06429_ Crushed by falling debris. 06431_ System corrupted: Matter fused (-6). 06448_ QWB:ZJ4C>M9V1U=R8Q24C 06452_ The unstable cave ceiling collapses. 06452_ Y-72 Warden crushed by falling debris. 06457_ Penetrated by Slug. 06457_ Slug penetrates Earth. 06457_ The unstable cave ceiling collapses. 06457_ Y-72 Warden crushed by falling debris. 06462_ Penetrated by Slug. 06462_ Slug penetrates Earth. 06463_ The unstable cave ceiling collapses. Map ----- +----------------------------------------------------+ | ?????????????????????????????????????????????????? | | ?????????????????????????????????????????????????? | | ?????????????????????????????????????????????????? | | ?????????????????????????????????????????????????? | | ?????????????????????????????????????????????????? | | ?????????????????????????????????????????????????? | | ?????????????????????????????????????????????????? | | ?????????????????????????????????????????????????? | | ?????????????????????????????????????????????????? | | ?????????????????????????????????????????????????? | | ?????????????????????????????????????????????????? | | ?????????????????????????????????????????????????? | | ?????????????????????????????????????????????????? | | ?????????????????????????????????????????????????? | | ?????????????????????????????????????????????????? | | ?????????????????????????????????????????????????? | | ?????????????????????????????????????????????????? | | ## ??????????????????????????????????????????????? | | ## ??????????????????????????????????????????????? | | ??????????????????????????????????????????????? | | ????????????????????????????????????????????????? | | ?????????????????????????????????????????????????? | | ?????????????????????????????????????????????????? | | ##### ???????????????????????????????????????????? | | # ??????????????????###??????????????????????? | | ##??????????????????#@##?????????????????????? | | ##??????????????????## ##????????????????????? | | ##???????????????????## ##????###????????????? | | ##????????????????????## ##???# #????????????? | | ##?????????????????????## ##??# #???##???????? | | ###???????????#####??????##Y##?# #### #???????? | | ################# #######?##Y ## # # #######?? | | ###########"""" """ ##### # ### | | " # # # ! # | | # # =# ### ! | | """ # # # # =#! | | "T" " # | | ###### " " # # # | | # " # # | | # # " # | | """ # """" # " | | """ + """" + " # | | """ # """" ##+##" # | | """ # """" # " | | # + " " # | | """ # """" # T" " | | """ # """" # "" " # | | """ # """" " " # # # | | """ # """" " " # # # | | " " " ## | +----------------------------------------------------+ Best States ------------- Heat Dissipation 59 Coolant Potential 100 Energy Generation 55 Energy Capacity 515 Matter Stores 300 Matter Capacity 700 Sight Range 22 Robot Scan Range 18 Terrain Scan Density 10 ECM Strength 1 Jamming Range 12 Power Amplification 30 Armor Coverage 375 Evasion (%) 80 Targeting Accuracy 8 Recoil Reduction 2 Offensive Hacking 12 Defensive Hacking 12 Item Schematics ----------------- None Robot Schematics ------------------ None Fabricated ------------ Centrium Leg | x1 | -2/Testing | Preloaded Repaired ---------- Nothing Alien Tech Used ----------------- Core Cannon Terrabomb Phase Armor Phase Redirector Subatomic Replicator Achievements -------------- None Challenges ------------ None Game ------ Seed AssemblyPoweredMultitool Manual? 0 Play Time 01:48:08 Cumulative 263.3 hours Start 2025.09.06 @ 03:50:47 End 2025.09.06 @ 11:08:38 Sessions 8 Manual Loads 0 Difficulty Rogue Special Mode None Game No. 385 Rogue 385 Adventurer 0 Explorer 0 Win Type - Total 5 Types 4/0/1/0/0/0/0/0/0/0 Lore% 83 Gallery% 79 Achievement% 61 Wizard Run 0 Options --------- Layout 1 ASCII 0 Keyboard 0 Movement Numpad Keybinds 0 Fullscreen 1 Font 24/Smallcaps Map View 50x40 Zoom Use 0% Tactical HUD 1 Map Filters NONE Filters NONE Steam 1 RUN: 23054b68-0f70-4d9a-b07e-ad3f5d53baeb